fUST/lending_fUST_20240224
["ID","MTS","AMOUNT","RATE_DAILY","PERIOD"]
[315047767,1708776638568,-500.9669518,0.00019178,2]
[315047768,1708776638577,-500.0,0.00019178,2]
[315047769,1708776638587,-500.0,0.00019178,2]
[315047770,1708776638596,-500.0,0.00019178,2]
[315047771,1708776638605,-500.0,0.00019178,2]
[315047772,1708776638615,-500.0,0.00019178,2]
[315047773,1708776638624,-500.0,0.00019178,2]
[315047774,1708776638633,-1627.86,0.00019178,2]
[315047775,1708776638642,-500.0,0.00019178,2]
[315047776,1708776638651,-500.0,0.00019178,2]
[315047777,1708776638660,-835.93,0.00019178,2]
[315047778,1708776638669,-500.0,0.00019178,2]
[315047779,1708776638678,-988.24,0.00019178,2]
[315047780,1708776638687,-500.0,0.00019178,2]
[315047781,1708776638696,-501.06561376,0.00019178,2]
[315047782,1708776638705,-584.1010211,0.00019178,2]
[315047783,1708776638715,-1020.58,0.00019178,2]
[315047784,1708776638724,-500.0,0.00019178,2]
[315047785,1708776638733,-503.02160777,0.00019178,2]
[315047786,1708776638742,-500.0,0.00019178,2]
[315047787,1708776638754,-500.0,0.00019178,2]
[315047788,1708776638763,-7944.66,0.00019178,2]
[315047789,1708776638772,-551.53581837,0.00019178,2]
[315047790,1708776638781,-501.33966473,0.00019178,2]
[315047791,1708776638791,-735.06,0.00019178,2]
[315047792,1708776638800,-500.0,0.00019178,2]
[315047793,1708776638809,-500.0,0.00019178,2]
[315047794,1708776638818,-500.0,0.00019178,2]
[315047795,1708776638827,-567.53385106,0.00019178,2]
[315047796,1708776638837,-1062.94,0.00019178,2]
[315047797,1708776638846,-500.0,0.00019178,2]
[315047798,1708776638856,-8640.72,0.00019178,2]
[315047799,1708776638867,-500.0,0.00019178,2]
[315047800,1708776638877,-578.14,0.00019178,2]
[315047801,1708776638886,-501.95237073,0.00019178,2]
[315047802,1708776638896,-500.0,0.00019178,2]
[315047803,1708776638906,-823.07,0.00019178,2]
[315047804,1708776638916,-362.09268378,0.00019178,2]
[315047805,1708776638925,-500.0,0.00019178,2]
[315047806,1708776638936,-574.06,0.00019178,2]
[315047807,1708776638945,-5400.6,0.00019178,2]
[315047808,1708776638954,-791.87,0.00019178,2]
[315047809,1708776638965,-500.0,0.00019178,2]
[315047810,1708776638974,-3679.12,0.00019178,2]
[315047811,1708776638983,-1750.92,0.00019178,2]
[315047812,1708776638992,-3994.88,0.00019178,2]
[315047813,1708776639002,-500.0,0.00019178,2]
[315047814,1708776639011,-500.0,0.00019178,2]
[315047815,1708776639020,-500.0,0.00019178,2]
[315047816,1708776639029,-1316.42,0.00019178,2]
[315047817,1708776639038,-1126.59,0.00019178,2]
[315047818,1708776639047,-1082.16,0.00019178,2]
[315047819,1708776639056,-500.0,0.00019178,2]
[315047820,1708776639065,-500.0,0.00019178,2]
[315047821,1708776639074,-380.90353411,0.00019178,2]
[315047822,1708776639083,-916.38,0.00019178,2]
[315047823,1708776639093,-166.666666,0.00019178,2]
[315047824,1708776639102,-362.9663976,0.00019391,2]
[315047825,1708776639111,-155.32894887,0.00019441,2]
[315047826,1708776639120,-189.94,0.00019442,3]
[315047827,1708776639129,-521.36039873,0.00019452,2]
[315047828,1708776639138,-500.0,0.00019452,2]
[315047829,1708776639147,-499.09084534,0.00019452,2]
[315047830,1708776639156,-152.9,0.00019452,2]
[315047831,1708776639166,-500.0,0.00019452,2]
[315047832,1708776639175,-500.0,0.00019452,2]
[315047833,1708776639185,-1296.47,0.00019452,2]
[315047834,1708776639194,-973.63,0.00019452,2]
[315047835,1708776639204,-500.0,0.00019452,2]
[315047836,1708776639213,-500.0,0.00019452,2]
[315047837,1708776639222,-500.0,0.00019452,2]
[315047838,1708776639231,-500.0,0.00019452,2]
[315047839,1708776639240,-500.0,0.00019452,2]
[315047840,1708776639260,-500.0,0.00019452,2]
[315047841,1708776639270,-500.0,0.00019452,2]
[315047842,1708776639280,-191.23628942,0.00019452,2]
[315047843,1708776639290,-590.39,0.00019452,2]
[315047844,1708776639298,-1615.3,0.00019452,2]
[315047845,1708776639308,-786.72,0.00019452,2]
[315047846,1708776639317,-1532.18,0.00019452,2]
[315047847,1708776639326,-500.0,0.00019452,2]
[315047848,1708776639336,-500.0,0.00019452,2]
[315047849,1708776639345,-1627.86,0.00019452,2]
[315047850,1708776639354,-835.93,0.00019452,2]
[315047851,1708776639364,-988.24,0.00019452,2]
[315047852,1708776639373,-500.0,0.00019452,2]
[315047853,1708776639382,-1020.58,0.00019452,2]
[315047854,1708776639391,-500.0,0.00019452,2]
[315047855,1708776639401,-500.0,0.00019452,2]
[315047856,1708776639411,-7944.66,0.00019452,2]
[315047857,1708776639420,-735.06,0.00019452,2]
[315047858,1708776639429,-500.0,0.00019452,2]
[315047859,1708776639438,-500.0,0.00019452,2]
[315047860,1708776639447,-500.0,0.00019452,2]
[315047861,1708776639456,-1062.94,0.00019452,2]
[315047862,1708776639466,-8640.72,0.00019452,2]
[315047863,1708776639475,-500.0,0.00019452,2]
[315047864,1708776639484,-578.14,0.00019452,2]
[315047865,1708776639495,-500.0,0.00019452,2]
[315047866,1708776639505,-823.07,0.00019452,2]
[315047867,1708776639514,-500.0,0.00019452,2]
[315047868,1708776639524,-574.06,0.00019452,2]
[315047869,1708776639534,-5400.6,0.00019452,2]
[315047870,1708776639544,-791.87,0.00019452,2]
[315047871,1708776639553,-500.0,0.00019452,2]
[315047872,1708776639562,-3679.12,0.00019452,2]
[315047873,1708776639572,-1750.92,0.00019452,2]
[315047874,1708776639582,-3994.88,0.00019452,2]
[315047875,1708776639592,-502.78381319,0.00019452,2]
[315047876,1708776639601,-500.0,0.00019452,2]
[315047877,1708776639611,-500.0,0.00019452,2]
[315047878,1708776639620,-1316.42,0.00019452,2]
[315047879,1708776639630,-1126.59,0.00019452,2]
[315047880,1708776639639,-1082.16,0.00019452,2]
[315047881,1708776639649,-916.38,0.00019452,2]
[315047882,1708776639658,-2152.59586135,0.00019462,2]
[315047883,1708776639667,-208.72070862,0.00019464,2]
[315047884,1708776639677,-3637.42980182,0.00019464,2]
[315047885,1708776639686,-2719.76577966,0.00019465,2]
[315047886,1708776639696,-503.750221,0.00019471,2]
[315047887,1708776639705,-503.750221,0.00019471,2]
[315047888,1708776639714,-1144.39809609,0.00019471,2]
[315047889,1708776639723,-3637.42980182,0.00019474,2]
[315047890,1708776639732,-150.66789599,0.00019476,2]
[315047891,1708776639741,-2152.59586135,0.00019477,2]
[315047892,1708776639751,-503.750221,0.00019479,2]
[315047893,1708776639760,-150.66789599,0.00019481,2]
[315047894,1708776639770,-150.66789599,0.00019481,2]
[315047895,1708776639779,-208.72070862,0.00019482,2]
[315047896,1708776639788,-1144.39809609,0.00019482,2]
[315047897,1708776639797,-1144.39809609,0.00019491,2]
[315047898,1708776639806,-3637.42980182,0.00019492,2]
[315047899,1708776639815,-208.72070862,0.00019494,2]
[315047900,1708776639824,-2719.76577966,0.00019499,2]
[315047901,1708776639834,-2719.76577966,0.00019499,2]
[315047902,1708776639843,-2152.59586135,0.000195,2]
[315047903,1708776639855,-200.5294442,0.000195,2]
[315047904,1708776639867,-200.5294442,0.000195,2]
[315047905,1708776639876,-200.5294442,0.000195,2]
[315047906,1708776639885,-200.5294442,0.000195,2]
[315047907,1708776639896,-200.5294442,0.000195,2]
[315047908,1708776639905,-200.5294442,0.000195,2]
[315047909,1708776639915,-200.5294442,0.000195,2]
[315047910,1708776639923,-166.666666,0.00019627,2]
[315047911,1708776639934,-380.02209652,0.000197,2]
[315047912,1708776639943,-380.02209652,0.000197,2]
[315047913,1708776639952,-380.02209652,0.000197,2]
[315047914,1708776639961,-157.45597314,0.000197,2]
[315047915,1708776639971,-157.45597314,0.000197,2]
[315047916,1708776639980,-157.45597314,0.000197,2]
[315047917,1708776639989,-2051.753132,0.000197,2]
[315047918,1708776639999,-2051.753132,0.000197,2]
[315047919,1708776640008,-2051.753132,0.000197,2]
[315047920,1708776640017,-863.31786194,0.000197,2]
[315047921,1708776640028,-863.31786194,0.000197,2]
[315047922,1708776640037,-863.31786194,0.000197,2]
[315047923,1708776640046,-200.5294442,0.000197,2]
[315047924,1708776640055,-2744.02599082,0.000197,2]
[315047925,1708776640064,-2744.02599082,0.000197,2]
[315047926,1708776640074,-2744.02599082,0.000197,2]
[315047927,1708776640083,-1623.88810591,0.000197,2]
[315047928,1708776640092,-1623.88810591,0.000197,2]
[315047929,1708776640101,-1623.88810591,0.000197,2]
[315047933,1708776640226,-200.5294442,0.000197,2]
[315047934,1708776640237,-200.5294442,0.000197,2]
[315047935,1708776640248,-200.5294442,0.000197,2]
[315047936,1708776640258,-200.5294442,0.000197,2]
[315047937,1708776640267,-500.0,0.00019726,2]
[315047938,1708776640276,-500.0,0.00019726,2]
[315047940,1708776640285,-1296.47,0.00019726,2]
[315047942,1708776640294,-973.63,0.00019726,2]
[315047944,1708776640304,-500.0,0.00019726,2]
[315047945,1708776640313,-500.0,0.00019726,2]
[315047946,1708776640323,-500.0,0.00019726,2]
[315047947,1708776640332,-500.0,0.00019726,2]
[315047948,1708776640342,-500.0,0.00019726,2]
[315047949,1708776640351,-1615.3,0.00019726,2]
[315047950,1708776640360,-786.72,0.00019726,2]
[315047951,1708776640370,-1532.18,0.00019726,2]
[315047952,1708776640379,-500.0,0.00019726,2]
[315047953,1708776640389,-500.0,0.00019726,2]
[315047954,1708776640398,-1627.86,0.00019726,2]
[315047955,1708776640407,-835.93,0.00019726,2]
[315047956,1708776640416,-988.24,0.00019726,2]
[315047957,1708776640426,-1020.58,0.00019726,2]
[315047958,1708776640435,-500.0,0.00019726,2]
[315047959,1708776640445,-500.0,0.00019726,2]
[315047960,1708776640454,-7944.66,0.00019726,2]
[315047961,1708776640464,-735.06,0.00019726,2]
[315047962,1708776640473,-645.59341698,0.00019726,2]
[315047963,1708776640483,-500.0,0.00019726,2]
[315047964,1708776640492,-1062.94,0.00019726,2]
[315047965,1708776640502,-8640.72,0.00019726,2]
[315047966,1708776640510,-500.0,0.00019726,2]
[315047967,1708776640519,-578.14,0.00019726,2]
[315047968,1708776640528,-500.0,0.00019726,2]
[315047969,1708776640538,-823.07,0.00019726,2]
[315047970,1708776640547,-574.06,0.00019726,2]
[315047971,1708776640556,-5400.6,0.00019726,2]
[315047972,1708776640565,-791.87,0.00019726,2]
[315047973,1708776640574,-500.0,0.00019726,2]
[315047974,1708776640584,-3679.12,0.00019726,2]
[315047975,1708776640593,-1750.92,0.00019726,2]
[315047976,1708776640602,-3994.88,0.00019726,2]
[315047977,1708776640611,-500.0,0.00019726,2]
[315047978,1708776640620,-500.0,0.00019726,2]
[315047979,1708776640630,-1316.42,0.00019726,2]
[315047980,1708776640640,-1126.59,0.00019726,2]
[315047981,1708776640649,-1082.16,0.00019726,2]
[315047982,1708776640658,-916.38,0.00019726,2]
[315047983,1708776640667,-1302.15831049,0.000198,2]
[315047984,1708776640676,-200.5294442,0.000198,2]
[315047985,1708776640685,-200.5294442,0.000198,2]
[315047986,1708776640694,-200.5294442,0.000198,2]
[315047987,1708776640703,-200.5294442,0.000198,2]
[315047988,1708776640713,-394.6200584,0.000198,2]
[315047989,1708776640723,-981.51,0.00019889,2]
[315047990,1708776640732,-176231.58481757,0.000199,2]
[315047991,1708776640742,-200.5294442,0.000199,2]
[315047992,1708776640753,-200.5294442,0.000199,2]
[315047993,1708776640762,-401.0588884,0.000199,2]
[315047994,1708776640771,-29080.95293185,0.000199,2]
[315047995,1708776640780,-257.0637228,0.00019998,2]
[315047996,1708776640789,-375.97130773,0.00019999,2]
[315047997,1708776640798,-1389.2207575,0.00019999,2]
[315047998,1708776640808,-1491000.8820351,0.0002,2]
[315047999,1708776640823,-3275.46023404,0.0002,2]
[315048010,1708776641258,-355.23546184,0.00019178,2]
[315048011,1708776641328,-144.76453816,0.00019178,2]
[315048012,1708776641338,-150.20157181,0.00019452,2]
[315048013,1708776641347,-12807.89201078,0.00019716,3]
[315048014,1708776641360,-24837.91346541,0.00019716,3]
[315048044,1708776643071,-183.35118299,0.00019078,2]
[315048046,1708776643080,-1793.1124308,0.00019716,3]
[315048142,1708777832229,-4697.79543124,0.00018764,2]
[315048143,1708777832239,-295.40221259,0.00018764,2]
[315048145,1708777832249,-1718.4169057,0.00018765,2]
[315048147,1708777832260,-273.79961368,0.00018765,2]
[315048149,1708777832269,-996.31760272,0.000189,2]
[315048163,1708777832395,-443.62445115,0.00019078,2]
[315048165,1708777832406,-443.62445114,0.00019146,2]
[315048167,1708777832415,-189.94,0.00019168,3]
[315048169,1708777832425,-155.32894887,0.00019177,2]
[315048170,1708777832433,-2297.34344575,0.00019177,2]
[315048171,1708777832442,-500.0,0.00019178,2]
[315048172,1708777832451,-500.0,0.00019178,2]
[315048173,1708777832459,-500.0,0.00019178,2]
[315048174,1708777832468,-500.37566071,0.00019178,2]
[315048175,1708777832477,-500.2489613,0.00019178,2]
[315048176,1708777832486,-500.0,0.00019178,2]
[315048177,1708777832495,-366.43246884,0.00019178,2]
[315048178,1708777832503,-500.0,0.00019178,2]
[315048179,1708777832514,-500.0,0.00019178,2]
[315048180,1708777832523,-500.93898208,0.00019178,2]
[315048181,1708777832532,-500.0,0.00019178,2]
[315048182,1708777832541,-500.53835206,0.00019178,2]
[315048183,1708777832550,-500.0,0.00019178,2]
[315048184,1708777832559,-501.36180209,0.00019178,2]
[315048185,1708777832569,-500.49444279,0.00019178,2]
[315048186,1708777832577,-500.0,0.00019178,2]
[315048187,1708777832586,-500.0,0.00019178,2]
[315048188,1708777832595,-500.76109827,0.00019178,2]
[315048189,1708777832604,-500.0,0.00019178,2]
[315048190,1708777832613,-500.0,0.00019178,2]
[315048191,1708777832621,-500.0,0.00019178,2]
[315048192,1708777832631,-500.0,0.00019178,2]
[315048193,1708777832640,-501.44748871,0.00019178,2]
[315048194,1708777832648,-500.0,0.00019178,2]
[315048195,1708777832657,-500.0,0.00019178,2]
[315048196,1708777832666,-642.35242553,0.00019178,2]
[315048197,1708777832675,-500.0,0.00019178,2]
[315048198,1708777832684,-500.0,0.00019178,2]
[315048199,1708777832692,-433.20829206,0.00019178,2]
[315048200,1708777832702,-500.0,0.00019178,2]
[315048201,1708777832711,-529.03090015,0.00019178,2]
[315048202,1708777832720,-500.0,0.00019178,2]
[315048203,1708777832729,-500.0,0.00019178,2]
[315048204,1708777832738,-500.48761592,0.00019178,2]
[315048205,1708777832747,-500.0,0.00019178,2]
[315048206,1708777832756,-508.24,0.00019178,2]
[315048207,1708777832766,-500.0,0.00019178,2]
[315048208,1708777832775,-500.0,0.00019178,2]
[315048209,1708777832783,-500.0,0.00019178,2]
[315048210,1708777832792,-500.0,0.00019178,2]
[315048211,1708777832801,-500.0,0.00019178,2]
[315048212,1708777832809,-500.37315156,0.00019178,2]
[315048213,1708777832818,-500.0,0.00019178,2]
[315048214,1708777832827,-500.0,0.00019178,2]
[315048215,1708777832835,-500.0,0.00019178,2]
[315048216,1708777832844,-500.0,0.00019178,2]
[315048217,1708777832853,-500.0,0.00019178,2]
[315048218,1708777832861,-501.12951574,0.00019178,2]
[315048219,1708777832870,-500.0,0.00019178,2]
[315048220,1708777832879,-500.0,0.00019178,2]
[315048221,1708777832887,-500.0,0.00019178,2]
[315048222,1708777832896,-500.0,0.00019178,2]
[315048223,1708777832905,-500.54697198,0.00019178,2]
[315048224,1708777832914,-505.90966266,0.00019178,2]
[315048225,1708777832922,-500.0,0.00019178,2]
[315048226,1708777832931,-500.55412807,0.00019178,2]
[315048227,1708777832940,-501.63733233,0.00019178,2]
[315048228,1708777832949,-501.66096636,0.00019178,2]
[315048229,1708777832958,-317.55909433,0.00019178,2]
[315048230,1708777832967,-501.08265601,0.00019178,2]
[315048231,1708777832976,-455.06033661,0.00019178,2]
[315048232,1708777832984,-501.74495737,0.00019178,2]
[315048233,1708777832993,-500.0,0.00019178,2]
[315048234,1708777833002,-500.0,0.00019178,2]
[315048235,1708777833011,-647.81541511,0.00019178,2]
[315048236,1708777833020,-500.65907646,0.00019178,2]
[315048238,1708777833029,-500.85537898,0.00019178,2]
[315048240,1708777833038,-500.0,0.00019178,2]
[315048242,1708777833047,-500.0,0.00019178,2]
[315048244,1708777833056,-500.0,0.00019178,2]
[315048245,1708777833066,-419.30618001,0.00019178,2]
[315048248,1708777833075,-501.37899769,0.00019178,2]
[315048250,1708777833084,-500.0,0.00019178,2]
[315048251,1708777833093,-581.63784361,0.00019178,2]
[315048253,1708777833102,-500.83615552,0.00019178,2]
[315048255,1708777833111,-500.68483796,0.00019178,2]
[315048257,1708777833120,-500.0,0.00019178,2]
[315048260,1708777833129,-506.49,0.00019178,2]
[315048262,1708777833139,-500.0,0.00019178,2]
[315048263,1708777833148,-500.73778236,0.00019178,2]
[315048266,1708777833158,-500.0,0.00019178,2]
[315048267,1708777833167,-638.90131519,0.00019178,2]
[315048269,1708777833176,-500.0,0.00019178,2]
[315048271,1708777833186,-500.0,0.00019178,2]
[315048273,1708777833195,-500.0,0.00019178,2]
[315048275,1708777833204,-500.87948269,0.00019178,2]
[315048278,1708777833214,-501.11644358,0.00019178,2]
[315048279,1708777833225,-155.91864873,0.00019178,2]
[315048282,1708777833239,-500.0,0.00019178,2]
[315048284,1708777833248,-500.0,0.00019178,2]
[315048286,1708777833257,-500.0,0.00019178,2]
[315048288,1708777833267,-501.1649039,0.00019178,2]
[315048290,1708777833276,-500.0,0.00019178,2]
[315048292,1708777833285,-500.0,0.00019178,2]
[315048294,1708777833293,-417.76711785,0.00019178,2]
[315048296,1708777833302,-500.0,0.00019178,2]
[315048297,1708777833312,-502.35475423,0.00019178,2]
[315048300,1708777833322,-501.07637508,0.00019178,2]
[315048302,1708777833331,-500.0,0.00019178,2]
[315048304,1708777833340,-500.0,0.00019178,2]
[315048305,1708777833349,-501.12834095,0.00019178,2]
[315048307,1708777833358,-300.06680855,0.00019178,2]
[315048309,1708777833367,-506.61240633,0.00019178,2]
[315048311,1708777833377,-500.0,0.00019178,2]
[315048313,1708777833386,-500.0,0.00019178,2]
[315048315,1708777833395,-500.0,0.00019178,2]
[315048318,1708777833408,-500.0,0.00019178,2]
[315048319,1708777833417,-500.0,0.00019178,2]
[315048321,1708777833426,-500.0,0.00019178,2]
[315048323,1708777833436,-500.0,0.00019178,2]
[315048326,1708777833445,-500.71419861,0.00019178,2]
[315048327,1708777833455,-205.35364613,0.00019178,2]
[315048328,1708777833464,-480.76324187,0.00019178,2]
[315048329,1708777833472,-501.08288519,0.00019178,2]
[315048330,1708777833481,-500.32712948,0.00019178,2]
[315048331,1708777833491,-500.0,0.00019178,2]
[315048332,1708777833501,-500.78039548,0.00019178,2]
[315048333,1708777833511,-500.68082832,0.00019178,2]
[315048334,1708777833521,-500.0,0.00019178,2]
[315048335,1708777833530,-500.0,0.00019178,2]
[315048336,1708777833539,-500.0,0.00019178,2]
[315048337,1708777833548,-500.0,0.00019178,2]
[315048338,1708777833557,-435.89086649,0.00019178,2]
[315048339,1708777833566,-500.0,0.00019178,2]
[315048340,1708777833575,-500.0,0.00019178,2]
[315048341,1708777833584,-502.0883525,0.00019178,2]
[315048342,1708777833593,-500.0,0.00019178,2]
[315048343,1708777833604,-1409.84,0.00019178,2]
[315048344,1708777833614,-500.0,0.00019178,2]
[315048345,1708777833623,-500.0,0.00019178,2]
[315048346,1708777833632,-500.0,0.00019178,2]
[315048347,1708777833641,-500.0,0.00019178,2]
[315048348,1708777833650,-500.75392441,0.00019178,2]
[315048349,1708777833659,-500.0,0.00019178,2]
[315048350,1708777833667,-500.0,0.00019178,2]
[315048351,1708777833676,-502.91587547,0.00019178,2]
[315048352,1708777833685,-500.79775915,0.00019178,2]
[315048353,1708777833694,-500.0,0.00019178,2]
[315048354,1708777833702,-587.89907611,0.00019178,2]
[315048355,1708777833712,-500.58709093,0.00019178,2]
[315048356,1708777833721,-500.0,0.00019178,2]
[315048357,1708777833729,-500.0,0.00019178,2]
[315048358,1708777833739,-151.0,0.00019178,2]
[315048359,1708777833748,-500.0,0.00019178,2]
[315048360,1708777833756,-595.44437166,0.00019178,2]
[315048361,1708777833767,-582.0011538,0.00019178,2]
[315048362,1708777833776,-1000.0,0.00019178,2]
[315048363,1708777833785,-500.0,0.00019178,2]
[315048364,1708777833794,-500.60257654,0.00019178,2]
[315048365,1708777833803,-500.0,0.00019178,2]
[315048366,1708777833811,-500.0,0.00019178,2]
[315048367,1708777833820,-1134.58,0.00019178,2]
[315048368,1708777833830,-500.0,0.00019178,2]
[315048369,1708777833839,-501.01262498,0.00019178,2]
[315048370,1708777833848,-500.0,0.00019178,2]
[315048371,1708777833857,-500.71887164,0.00019178,2]
[315048372,1708777833866,-500.0,0.00019178,2]
[315048373,1708777833876,-503.41505695,0.00019178,2]
[315048374,1708777833885,-500.0,0.00019178,2]
[315048375,1708777833895,-500.42229525,0.00019178,2]
[315048376,1708777833904,-500.0,0.00019178,2]
[315048377,1708777833913,-500.0,0.00019178,2]
[315048378,1708777833922,-340.57594727,0.00019178,2]
[315048379,1708777833931,-500.68256749,0.00019178,2]
[315048380,1708777833940,-500.56320968,0.00019178,2]
[315048381,1708777833949,-512.17530976,0.00019178,2]
[315048382,1708777833959,-500.0,0.00019178,2]
[315048383,1708777833968,-500.0,0.00019178,2]
[315048384,1708777833977,-500.0,0.00019178,2]
[315048385,1708777833986,-500.0,0.00019178,2]
[315048386,1708777833995,-501.35296597,0.00019178,2]
[315048387,1708777834005,-500.0,0.00019178,2]
[315048388,1708777834015,-501.95237073,0.00019178,2]
[315048389,1708777834024,-574.06,0.00019178,2]
[315048390,1708777834033,-500.0,0.00019178,2]
[315048391,1708777834042,-500.0,0.00019178,2]
[315048392,1708777834051,-584.56806029,0.00019178,2]
[315048393,1708777834060,-500.0,0.00019178,2]
[315048394,1708777834070,-500.0,0.00019178,2]
[315048395,1708777834079,-500.0,0.00019178,2]
[315048396,1708777834088,-500.0,0.00019178,2]
[315048397,1708777834097,-500.0,0.00019178,2]
[315048398,1708777834106,-500.86368941,0.00019178,2]
[315048399,1708777834116,-500.0,0.00019178,2]
[315048400,1708777834125,-628.59224466,0.00019178,2]
[315048401,1708777834134,-380.90353411,0.00019178,2]
[315048402,1708777834143,-500.0,0.00019178,2]
[315048403,1708777834152,-500.0,0.00019178,2]
[315048404,1708777834161,-1615.3,0.00019178,2]
[315048405,1708777834170,-501.28836524,0.00019178,2]
[315048406,1708777834179,-501.71518943,0.00019178,2]
[315048407,1708777834189,-501.82289924,0.00019178,2]
[315048408,1708777834198,-786.72,0.00019178,2]
[315048409,1708777834207,-500.0,0.00019178,2]
[315048410,1708777834217,-213.92388757,0.00019178,2]
[315048411,1708777834230,-500.0,0.00019178,2]
[315048412,1708777834240,-187.70452436,0.00019178,2]
[315048413,1708777834249,-500.0,0.00019178,2]
[315048414,1708777834258,-501.95700991,0.00019178,2]
[315048415,1708777834269,-500.0,0.00019178,2]
[315048416,1708777834278,-500.0,0.00019178,2]
[315048417,1708777834287,-500.0,0.00019178,2]
[315048418,1708777834296,-500.0,0.00019178,2]
[315048419,1708777834306,-500.0,0.00019178,2]
[315048420,1708777834315,-500.0,0.00019178,2]
[315048421,1708777834324,-498.58203163,0.00019178,2]
[315048422,1708777834333,-1653.29,0.00019178,2]
[315048423,1708777834342,-510.35524972,0.00019178,2]
[315048424,1708777834351,-501.13067116,0.00019178,2]
[315048425,1708777834360,-500.98215431,0.00019178,2]
[315048426,1708777834370,-500.0,0.00019178,2]
[315048427,1708777834379,-205.04904748,0.00019178,2]
[315048428,1708777834388,-500.0,0.00019178,2]
[315048429,1708777834398,-615.60668137,0.00019178,2]
[315048430,1708777834407,-500.01592729,0.00019178,2]
[315048431,1708777834417,-500.68195028,0.00019178,2]
[315048432,1708777834426,-583.5360657,0.00019178,2]
[315048433,1708777834436,-1416.69,0.00019178,2]
[315048434,1708777834445,-500.0,0.00019178,2]
[315048435,1708777834454,-500.0,0.00019178,2]
[315048436,1708777834464,-500.63624964,0.00019178,2]
[315048437,1708777834473,-153.41352012,0.00019178,2]
[315048438,1708777834482,-1050.3,0.00019178,2]
[315048439,1708777834491,-500.0,0.00019178,2]
[315048440,1708777834501,-500.0,0.00019178,2]
[315048441,1708777834511,-500.0,0.00019178,2]
[315048442,1708777834520,-500.61188878,0.00019178,2]
[315048443,1708777834529,-500.0,0.00019178,2]
[315048444,1708777834539,-500.93155288,0.00019178,2]
[315048445,1708777834548,-349.21388826,0.00019178,2]
[315048446,1708777834557,-500.0,0.00019178,2]
[315048447,1708777834567,-1054.8,0.00019178,2]
[315048448,1708777834576,-500.0,0.00019178,2]
[315048449,1708777834585,-500.0,0.00019178,2]
[315048450,1708777834595,-500.58628825,0.00019178,2]
[315048451,1708777834604,-500.0,0.00019178,2]
[315048452,1708777834613,-500.50930275,0.00019178,2]
[315048453,1708777834623,-500.0,0.00019178,2]
[315048454,1708777834632,-500.0,0.00019178,2]
[315048455,1708777834641,-501.22493864,0.00019178,2]
[315048456,1708777834651,-500.0,0.00019178,2]
[315048457,1708777834660,-500.75689754,0.00019178,2]
[315048458,1708777834669,-501.05951508,0.00019178,2]
[315048459,1708777834679,-500.0,0.00019178,2]
[315048460,1708777834688,-166.55907541,0.00019178,2]
[315048461,1708777834697,-835.93,0.00019178,2]
[315048462,1708777834706,-500.0,0.00019178,2]
[315048463,1708777834716,-500.0,0.00019178,2]
[315048464,1708777834725,-500.0,0.00019178,2]
[315048465,1708777834734,-500.0,0.00019178,2]
[315048466,1708777834743,-500.0,0.00019178,2]
[315048467,1708777834753,-500.0,0.00019178,2]
[315048468,1708777834764,-1418.45,0.00019178,2]
[315048469,1708777834773,-500.0,0.00019178,2]
[315048470,1708777834783,-500.99148903,0.00019178,2]
[315048471,1708777834792,-1627.86,0.00019178,2]